[Event "Early-Titled-Tuesday-Blitz-March-26-2024"]
[Site "Chess.com"]
[Date "2024.03.26"]
[Round "9"]
[White "Attacker_2006"]
[Black "Kate1606"]
[Result "1/2-1/2"]
[WhiteElo "2404"]
[BlackElo "2134"]
[TimeControl "180+1"]
[EndTime "9:43:44 PDT"]
[Termination "Game drawn - insufficient material"]

1. h4 {[%clk 0:02:56.9]} 1... d5 {[%clk 0:02:56.9]} 2. a4 {[%clk 0:02:54.3]}
2... e5 {[%clk 0:02:55.8]} 3. h5 {[%clk 0:02:53.8]} 3... h6 {[%clk 0:02:54.9]}
4. a5 {[%clk 0:02:53.3]} 4... Nf6 {[%clk 0:02:54.5]} 5. d4 {[%clk 0:02:51.8]}
5... exd4 {[%clk 0:02:53]} 6. Qxd4 {[%clk 0:02:52.1]} 6... Nc6 {[%clk
0:02:53.6]} 7. Qd1 {[%clk 0:02:52.3]} 7... Bc5 {[%clk 0:02:53.1]} 8. Nf3 {[%clk
0:02:51.3]} 8... Bg4 {[%clk 0:02:47]} 9. Bf4 {[%clk 0:02:49.3]} 9... Bxh5 {[%clk
0:02:43.2]} 10. a6 {[%clk 0:02:49.6]} 10... bxa6 {[%clk 0:02:33.6]} 11. e3
{[%clk 0:02:47.4]} 11... Bg6 {[%clk 0:02:28.5]} 12. Bxa6 {[%clk 0:02:46.4]}
12... Nb4 {[%clk 0:02:22.9]} 13. Bb5+ {[%clk 0:02:39.3]} 13... c6 {[%clk
0:02:21.5]} 14. Ba4 {[%clk 0:02:38.8]} 14... Bd6 {[%clk 0:01:54.7]} 15. Ne5
{[%clk 0:02:28.9]} 15... Bxe5 {[%clk 0:01:30.8]} 16. Bxe5 {[%clk 0:02:27.8]}
16... O-O {[%clk 0:01:29.5]} 17. Qd4 {[%clk 0:02:21.6]} 17... Nxc2+ {[%clk
0:01:01.9]} 18. Bxc2 {[%clk 0:02:11.6]} 18... Bxc2 {[%clk 0:01:02.8]} 19. Bxf6
{[%clk 0:02:04.5]} 19... Qxf6 {[%clk 0:01:01.7]} 20. Qxf6 {[%clk 0:02:02.8]}
20... gxf6 {[%clk 0:01:01.6]} 21. Na3 {[%clk 0:02:00.8]} 21... Bg6 {[%clk
0:00:52]} 22. Rxh6 {[%clk 0:01:59.5]} 22... Kg7 {[%clk 0:00:51]} 23. Rh1 {[%clk
0:01:58.7]} 23... Rab8 {[%clk 0:00:50.1]} 24. O-O-O {[%clk 0:01:58.1]} 24... Rb3
{[%clk 0:00:43.6]} 25. Rd2 {[%clk 0:01:03.9]} 25... Rfb8 {[%clk 0:00:42.3]} 26.
Nb1 {[%clk 0:01:04.3]} 26... a5 {[%clk 0:00:38.2]} 27. Rh4 {[%clk 0:01:01.7]}
27... c5 {[%clk 0:00:19.2]} 28. Rg4 {[%clk 0:01:02]} 28... Kf8 {[%clk
0:00:17.8]} 29. f4 {[%clk 0:01:01.7]} 29... Be4 {[%clk 0:00:17.3]} 30. Rh4
{[%clk 0:01:01.4]} 30... Ke7 {[%clk 0:00:16.4]} 31. Re2 {[%clk 0:00:53.2]} 31...
R8b4 {[%clk 0:00:13.5]} 32. Nc3 {[%clk 0:00:53.3]} 32... a4 {[%clk 0:00:11.2]}
33. Na2 {[%clk 0:00:39.2]} 33... Rb8 {[%clk 0:00:09.8]} 34. g4 {[%clk
0:00:18.7]} 34... a3 {[%clk 0:00:09.6]} 35. Rhh2 {[%clk 0:00:19.4]} 35... axb2+
{[%clk 0:00:05.5]} 36. Rxb2 {[%clk 0:00:20.3]} 36... Rxb2 {[%clk 0:00:04.9]} 37.
Rxb2 {[%clk 0:00:21.2]} 37... Rxb2 {[%clk 0:00:04.2]} 38. Kxb2 {[%clk
0:00:22.1]} 38... Bf3 {[%clk 0:00:04.5]} 39. Nc3 {[%clk 0:00:21.4]} 39... Kd6
{[%clk 0:00:02.1]} 40. g5 {[%clk 0:00:20.5]} 40... fxg5 {[%clk 0:00:02]} 41.
fxg5 {[%clk 0:00:21.4]} 41... Ke5 {[%clk 0:00:01.5]} 42. Kc2 {[%clk 0:00:19.9]}
42... d4 {[%clk 0:00:01.9]} 43. exd4+ {[%clk 0:00:19.8]} 43... cxd4 {[%clk
0:00:02.8]} 44. g6 {[%clk 0:00:19.8]} 44... fxg6 {[%clk 0:00:02.7]} 45. Nb5
{[%clk 0:00:19.1]} 45... g5 {[%clk 0:00:02.9]} 46. Kd2 {[%clk 0:00:19.5]} 46...
g4 {[%clk 0:00:02]} 47. Ke1 {[%clk 0:00:18.8]} 47... Ke4 {[%clk 0:00:01.9]} 48.
Nd6+ {[%clk 0:00:18.3]} 48... Ke3 {[%clk 0:00:02.2]} 49. Nf5+ {[%clk 0:00:18.9]}
49... Kf4 {[%clk 0:00:02.5]} 50. Nxd4 {[%clk 0:00:19.3]} 50... g3 {[%clk
0:00:02.6]} 51. Kf1 {[%clk 0:00:20]} 51... Be4 {[%clk 0:00:02.4]} 52. Ne2+
{[%clk 0:00:19.5]} 52... Ke3 {[%clk 0:00:02.8]} 53. Nxg3 {[%clk 0:00:19.1]}
1/2-1/2

[Event "Early-Titled-Tuesday-Blitz-March-26-2024"]
[Site "Chess.com"]
[Date "2024.03.26"]
[Round "9"]
[White "Aradhya2000"]
[Black "Juicy_Fork"]
[Result "1-0"]
[WhiteElo "2743"]
[BlackElo "2535"]
[TimeControl "180+1"]
[EndTime "9:43:51 PDT"]
[Termination "Aradhya2000 won on time"]

1. d4 {[%clk 0:03:00.9]} 1... Nf6 {[%clk 0:02:58.2]} 2. c4 {[%clk 0:03:01]} 2...
g6 {[%clk 0:02:57.3]} 3. g3 {[%clk 0:03:00.3]} 3... Bg7 {[%clk 0:02:56]} 4. Bg2
{[%clk 0:03:00.9]} 4... O-O {[%clk 0:02:55.8]} 5. Nf3 {[%clk 0:03:01.6]} 5... d6
{[%clk 0:02:56.5]} 6. Nc3 {[%clk 0:03:01.3]} 6... c5 {[%clk 0:02:57]} 7. dxc5
{[%clk 0:02:59.6]} 7... dxc5 {[%clk 0:02:56.7]} 8. Qxd8 {[%clk 0:02:57.9]} 8...
Rxd8 {[%clk 0:02:57.6]} 9. Ne5 {[%clk 0:02:58.3]} 9... Ne8 {[%clk 0:02:31.4]}
10. Nd3 {[%clk 0:02:55.6]} 10... Nd6 {[%clk 0:02:25.7]} 11. Nxc5 {[%clk
0:02:52.1]} 11... Nc6 {[%clk 0:02:21.2]} 12. Bd2 {[%clk 0:01:27.8]} 12... Nxc4
{[%clk 0:02:17.6]} 13. O-O-O {[%clk 0:01:28]} 13... Bd4 {[%clk 0:01:56.2]} 14.
Nd3 {[%clk 0:01:14.9]} 14... Bf5 {[%clk 0:01:43.3]} 15. Bxc6 {[%clk 0:01:14.1]}
15... bxc6 {[%clk 0:01:39.2]} 16. Bh6 {[%clk 0:00:53.1]} 16... Bxd3 {[%clk
0:01:15.8]} 17. exd3 {[%clk 0:00:51.7]} 17... Ne5 {[%clk 0:01:15.5]} 18. Be3
{[%clk 0:00:28.8]} 18... Bxe3+ {[%clk 0:01:10.6]} 19. fxe3 {[%clk 0:00:29.7]}
19... Nxd3+ {[%clk 0:01:10.8]} 20. Kc2 {[%clk 0:00:28.1]} 20... Nf2 {[%clk
0:01:02.5]} 21. Rxd8+ {[%clk 0:00:26.6]} 21... Rxd8 {[%clk 0:01:03.4]} 22. Re1
{[%clk 0:00:26]} 22... f5 {[%clk 0:00:52.5]} 23. e4 {[%clk 0:00:23.5]} 23...
fxe4 {[%clk 0:00:12.5]} 24. Nxe4 {[%clk 0:00:23.3]} 24... Ng4 {[%clk 0:00:12.5]}
25. h3 {[%clk 0:00:18.8]} 25... Ne5 {[%clk 0:00:11.7]} 26. Nc3 {[%clk
0:00:16.1]} 26... Nf3 {[%clk 0:00:06.6]} 27. Rxe7 {[%clk 0:00:16.5]} 27... Nd4+
{[%clk 0:00:06]} 28. Kb1 {[%clk 0:00:16.3]} 28... a5 {[%clk 0:00:04.6]} 29. g4
{[%clk 0:00:16]} 29... Nf3 {[%clk 0:00:03.9]} 30. Rc7 {[%clk 0:00:11.7]} 30...
Rd6 {[%clk 0:00:03.2]} 31. a4 {[%clk 0:00:11.2]} 31... Ng1 {[%clk 0:00:03]} 32.
g5 {[%clk 0:00:07.6]} 32... Nxh3 {[%clk 0:00:01.7]} 33. Ne4 {[%clk 0:00:08.1]}
33... Re6 {[%clk 0:00:01.5]} 34. Nf6+ {[%clk 0:00:08.5]} 34... Kf8 {[%clk
0:00:02.2]} 35. Nxh7+ {[%clk 0:00:08.9]} 35... Ke8 {[%clk 0:00:02.7]} 36. Rg7
{[%clk 0:00:06.3]} 36... Rd6 {[%clk 0:00:02.1]} 37. Nf6+ {[%clk 0:00:06.2]}
37... Kf8 {[%clk 0:00:02.5]} 38. Rxg6 {[%clk 0:00:06.6]} 38... Kf7 {[%clk
0:00:02.2]} 39. Rh6 {[%clk 0:00:04.9]} 39... Nxg5 {[%clk 0:00:02.7]} 40. Ng4
{[%clk 0:00:05.2]} 40... Rd1+ {[%clk 0:00:02.4]} 41. Kc2 {[%clk 0:00:05]} 41...
Rd4 {[%clk 0:00:02.9]} 42. Ne5+ {[%clk 0:00:05.1]} 42... Ke7 {[%clk 0:00:03]}
43. Nxc6+ {[%clk 0:00:05.1]} 43... Kf7 {[%clk 0:00:03.2]} 44. Nxd4 {[%clk
0:00:05.8]} 44... Kg7 {[%clk 0:00:03.3]} 45. Rh5 {[%clk 0:00:06.3]} 45... Ne4
{[%clk 0:00:03.2]} 46. Rxa5 {[%clk 0:00:06.4]} 46... Kf6 {[%clk 0:00:03.2]} 47.
Rf5+ {[%clk 0:00:06.3]} 47... Kg6 {[%clk 0:00:03.8]} 48. a5 {[%clk 0:00:06.6]}
48... Nd6 {[%clk 0:00:04.4]} 49. a6 {[%clk 0:00:07.2]} 49... Nc4 {[%clk
0:00:02]} 50. Rc5 {[%clk 0:00:06.8]} 50... Nb6 {[%clk 0:00:02.9]} 51. Rc6+
{[%clk 0:00:07]} 1-0

[Event "Early-Titled-Tuesday-Blitz-March-26-2024"]
[Site "Chess.com"]
[Date "2024.03.26"]
[Round "9"]
[White "BilicVladimir"]
[Black "AA95"]
[Result "1-0"]
[WhiteElo "2671"]
[BlackElo "2481"]
[TimeControl "180+1"]
[EndTime "9:43:54 PDT"]
[Termination "BilicVladimir won by resignation"]

1. Nf3 {[%clk 0:03:00.9]} 1... Nf6 {[%clk 0:02:59.5]} 2. c4 {[%clk 0:03:01.2]}
2... g6 {[%clk 0:03:00.1]} 3. d4 {[%clk 0:03:01.7]} 3... Bg7 {[%clk 0:03:00.8]}
4. Nc3 {[%clk 0:03:02.2]} 4... O-O {[%clk 0:03:01.5]} 5. g3 {[%clk 0:03:02.8]}
5... d6 {[%clk 0:02:58.9]} 6. Bg2 {[%clk 0:03:02.9]} 6... c6 {[%clk 0:02:59.4]}
7. O-O {[%clk 0:03:03.1]} 7... Qa5 {[%clk 0:02:59.5]} 8. Bd2 {[%clk 0:02:59.6]}
8... Qh5 {[%clk 0:02:57.7]} 9. Bg5 {[%clk 0:02:46]} 9... h6 {[%clk 0:02:54.3]}
10. Bxf6 {[%clk 0:02:45.3]} 10... Bxf6 {[%clk 0:02:55.2]} 11. Qd3 {[%clk
0:02:40.5]} 11... Bh3 {[%clk 0:02:42.1]} 12. Bxh3 {[%clk 0:02:39.1]} 12... Qxh3
{[%clk 0:02:43]} 13. Ne4 {[%clk 0:02:37]} 13... Bg7 {[%clk 0:02:42.5]} 14. Rac1
{[%clk 0:02:34.2]} 14... Nd7 {[%clk 0:02:42.2]} 15. b3 {[%clk 0:02:33.7]} 15...
f5 {[%clk 0:02:32.1]} 16. Ned2 {[%clk 0:02:31.3]} 16... Nf6 {[%clk 0:02:28.5]}
17. Rfe1 {[%clk 0:02:19.1]} 17... Ng4 {[%clk 0:02:02.7]} 18. Nf1 {[%clk
0:02:17.7]} 18... e5 {[%clk 0:01:58.2]} 19. dxe5 {[%clk 0:02:14.1]} 19... dxe5
{[%clk 0:01:58.2]} 20. Qd6 {[%clk 0:02:09.2]} 20... e4 {[%clk 0:01:43.2]} 21.
Nh4 {[%clk 0:01:54.6]} 21... Rf6 {[%clk 0:01:19.6]} 22. Qd7 {[%clk 0:01:42.4]}
22... g5 {[%clk 0:00:52.2]} 23. Nxf5 {[%clk 0:01:37.4]} 23... Rf7 {[%clk
0:00:37.6]} 24. Qe6 {[%clk 0:01:35]} 24... Nxf2 {[%clk 0:00:30.3]} 25. N1e3
{[%clk 0:01:16]} 25... Qh5 {[%clk 0:00:13.3]} 26. Kxf2 {[%clk 0:01:05.6]} 26...
Qxh2+ {[%clk 0:00:09.7]} 27. Ng2 {[%clk 0:01:03.6]} 27... e3+ {[%clk 0:00:10]}
28. Kxe3 {[%clk 0:00:55.2]} 28... Qxg2 {[%clk 0:00:07.6]} 29. Rf1 {[%clk
0:00:52.1]} 29... Rf8 {[%clk 0:00:05.8]} 30. Rf3 {[%clk 0:00:44.3]} 30... Qh3
{[%clk 0:00:04.7]} 31. Ne7+ {[%clk 0:00:35.4]} 31... Kh8 {[%clk 0:00:04.6]} 32.
Qxh3 {[%clk 0:00:35.3]} 32... Rxe7+ {[%clk 0:00:05.1]} 33. Kf2 {[%clk
0:00:34.3]} 33... Rfe8 {[%clk 0:00:04.9]} 34. Rc2 {[%clk 0:00:33.3]} 34... Bd4+
{[%clk 0:00:04.4]} 35. Kf1 {[%clk 0:00:32.6]} 35... Bg7 {[%clk 0:00:04.6]} 36.
Qf5 {[%clk 0:00:32.5]} 36... Re5 {[%clk 0:00:04.1]} 37. Qf7 {[%clk 0:00:31.3]}
37... R5e6 {[%clk 0:00:03.4]} 38. Rd2 {[%clk 0:00:28]} 38... g4 {[%clk
0:00:03.6]} 39. Rd7 {[%clk 0:00:26.6]} 39... Rg8 {[%clk 0:00:01.5]} 40. Qxe6
{[%clk 0:00:25.6]} 40... gxf3 {[%clk 0:00:02]} 41. exf3 {[%clk 0:00:24.8]} 41...
Kh7 {[%clk 0:00:02.1]} 42. Rxb7 {[%clk 0:00:22.9]} 42... c5 {[%clk 0:00:02.6]}
43. Qxg8+ {[%clk 0:00:22]} 43... Kxg8 {[%clk 0:00:02.5]} 44. Rxg7+ {[%clk
0:00:22.4]} 44... Kxg7 {[%clk 0:00:02.6]} 45. Ke2 {[%clk 0:00:22.1]} 45... Kf6
{[%clk 0:00:03]} 46. a3 {[%clk 0:00:20.1]} 46... a5 {[%clk 0:00:02.4]} 47. Ke3
{[%clk 0:00:20.4]} 47... Ke5 {[%clk 0:00:02.6]} 48. g4 {[%clk 0:00:20.2]} 48...
Kf6 {[%clk 0:00:01.5]} 49. f4 {[%clk 0:00:20.6]} 49... Kg6 {[%clk 0:00:01.4]}
50. Ke4 {[%clk 0:00:20.2]} 50... h5 {[%clk 0:00:01.7]} 51. gxh5+ {[%clk
0:00:19.9]} 51... Kxh5 {[%clk 0:00:02.2]} 52. Kd5 {[%clk 0:00:20.4]} 52... Kg4
{[%clk 0:00:02.5]} 53. Kxc5 {[%clk 0:00:20.7]} 53... Kxf4 {[%clk 0:00:03.3]} 54.
Kb5 {[%clk 0:00:21.1]} 54... Ke5 {[%clk 0:00:04]} 55. Kxa5 {[%clk 0:00:21.1]}
55... Kd6 {[%clk 0:00:04.9]} 56. Kb4 {[%clk 0:00:21.7]} 56... Kc7 {[%clk
0:00:05.6]} 57. c5 {[%clk 0:00:22.5]} 57... Kc6 {[%clk 0:00:06]} 58. Kc4 {[%clk
0:00:22.8]} 58... Kb7 {[%clk 0:00:06.5]} 59. b4 {[%clk 0:00:23.7]} 59... Ka6
{[%clk 0:00:07]} 60. b5+ {[%clk 0:00:24.5]} 60... Ka5 {[%clk 0:00:07]} 61. a4
{[%clk 0:00:23.3]} 61... Kxa4 {[%clk 0:00:06.9]} 62. b6 {[%clk 0:00:23.9]} 62...
Ka5 {[%clk 0:00:07.1]} 63. b7 {[%clk 0:00:24.3]} 63... Ka6 {[%clk 0:00:06.9]}
64. b8=Q {[%clk 0:00:23.5]} 1-0

[Event "Early-Titled-Tuesday-Blitz-March-26-2024"]
[Site "Chess.com"]
[Date "2024.03.26"]
[Round "9"]
[White "gorgeous1083"]
[Black "Roedor"]
[Result "1-0"]
[WhiteElo "2065"]
[BlackElo "2412"]
[TimeControl "180+1"]
[EndTime "9:43:54 PDT"]
[Termination "gorgeous1083 won by checkmate"]

1. d4 {[%clk 0:03:00.9]} 1... Nf6 {[%clk 0:01:41]} 2. c4 {[%clk 0:02:57.6]} 2...
g6 {[%clk 0:01:40.6]} 3. Nc3 {[%clk 0:02:57.9]} 3... Bg7 {[%clk 0:01:40.7]} 4.
e4 {[%clk 0:02:57.8]} 4... d6 {[%clk 0:01:41.3]} 5. Nf3 {[%clk 0:02:58.3]} 5...
O-O {[%clk 0:01:41.8]} 6. Be2 {[%clk 0:02:58.9]} 6... e5 {[%clk 0:01:42.1]} 7.
Be3 {[%clk 0:02:59.2]} 7... Ng4 {[%clk 0:01:39.6]} 8. Bg5 {[%clk 0:02:59.1]}
8... f6 {[%clk 0:01:40.1]} 9. Bh4 {[%clk 0:02:59.7]} 9... Nh6 {[%clk 0:01:40.4]}
10. dxe5 {[%clk 0:02:52.9]} 10... dxe5 {[%clk 0:01:40.5]} 11. Qd5+ {[%clk
0:02:46.3]} 11... Qxd5 {[%clk 0:01:37.1]} 12. Nxd5 {[%clk 0:02:47.2]} 12... Na6
{[%clk 0:01:35.4]} 13. a3 {[%clk 0:02:42.9]} 13... c6 {[%clk 0:01:35.1]} 14.
Ne7+ {[%clk 0:02:40.9]} 14... Kh8 {[%clk 0:01:32.8]} 15. Nxc8 {[%clk 0:02:38.2]}
15... Raxc8 {[%clk 0:01:33.7]} 16. b4 {[%clk 0:02:37.5]} 16... Nc7 {[%clk
0:01:28.3]} 17. O-O-O {[%clk 0:02:34.7]} 17... Rcd8 {[%clk 0:01:27.3]} 18. h3
{[%clk 0:02:32.7]} 18... Ne6 {[%clk 0:01:26.4]} 19. Rxd8 {[%clk 0:02:27.2]}
19... Rxd8 {[%clk 0:01:26]} 20. Rd1 {[%clk 0:02:07.2]} 20... Rxd1+ {[%clk
0:01:25.3]} 21. Bxd1 {[%clk 0:02:04.7]} 21... Nf4 {[%clk 0:01:23.8]} 22. Ne1
{[%clk 0:02:01.4]} 22... g5 {[%clk 0:01:09.6]} 23. Bg3 {[%clk 0:02:01.2]} 23...
f5 {[%clk 0:01:10]} 24. Bc2 {[%clk 0:01:48.9]} 24... Ne2+ {[%clk 0:01:08]} 25.
Kd2 {[%clk 0:01:46.5]} 25... Nxg3 {[%clk 0:01:07.6]} 26. fxg3 {[%clk 0:01:46.8]}
26... f4 {[%clk 0:01:02.9]} 27. gxf4 {[%clk 0:01:30.3]} 27... exf4 {[%clk
0:00:54.2]} 28. a4 {[%clk 0:01:22.2]} 28... Nf7 {[%clk 0:00:49.7]} 29. Nf3
{[%clk 0:01:20.5]} 29... h6 {[%clk 0:00:49.5]} 30. Bb3 {[%clk 0:01:13.1]} 30...
Ne5 {[%clk 0:00:49.3]} 31. c5 {[%clk 0:01:09]} 31... Nxf3+ {[%clk 0:00:45.8]}
32. gxf3 {[%clk 0:01:08.9]} 32... Bf8 {[%clk 0:00:24.6]} 33. Kc3 {[%clk
0:01:00.5]} 33... a5 {[%clk 0:00:22.5]} 34. bxa5 {[%clk 0:00:45.8]} 34... Bxc5
{[%clk 0:00:22.2]} 35. Be6 {[%clk 0:00:44.4]} 35... Bf2 {[%clk 0:00:22.1]} 36.
Bc8 {[%clk 0:00:42.8]} 36... Be1+ {[%clk 0:00:22]} 37. Kc4 {[%clk 0:00:41.6]}
37... Bxa5 {[%clk 0:00:21.3]} 38. Bxb7 {[%clk 0:00:41.5]} 38... Bb6 {[%clk
0:00:21.5]} 39. Bxc6 {[%clk 0:00:39.3]} 39... Kg7 {[%clk 0:00:21.6]} 40. Kb5
{[%clk 0:00:39.6]} 40... Be3 {[%clk 0:00:19.1]} 41. a5 {[%clk 0:00:37.5]} 41...
Kf6 {[%clk 0:00:19.5]} 42. Ka6 {[%clk 0:00:36.6]} 42... Ke5 {[%clk 0:00:17.6]}
43. Kb7 {[%clk 0:00:36.9]} 43... Kd4 {[%clk 0:00:15.4]} 44. a6 {[%clk
0:00:35.4]} 44... Kd3 {[%clk 0:00:15.7]} 45. Bd7 {[%clk 0:00:35.9]} 45... Ke2
{[%clk 0:00:15.3]} 46. Bg4 {[%clk 0:00:35.9]} 46... Kf2 {[%clk 0:00:15.2]} 47.
a7 {[%clk 0:00:31.9]} 47... Bxa7 {[%clk 0:00:12.1]} 48. Kxa7 {[%clk 0:00:32.8]}
48... Kg3 {[%clk 0:00:12.6]} 49. e5 {[%clk 0:00:32.7]} 49... Kh4 {[%clk
0:00:12.7]} 50. e6 {[%clk 0:00:32.8]} 50... h5 {[%clk 0:00:13.3]} 51. e7 {[%clk
0:00:31.9]} 51... hxg4 {[%clk 0:00:13.7]} 52. hxg4 {[%clk 0:00:30]} 52... Kg3
{[%clk 0:00:13.9]} 53. e8=Q {[%clk 0:00:29.5]} 53... Kxf3 {[%clk 0:00:14.3]} 54.
Qe6 {[%clk 0:00:27.5]} 54... Kg3 {[%clk 0:00:14.3]} 55. Qf5 {[%clk 0:00:24.8]}
55... f3 {[%clk 0:00:14.8]} 56. Qxg5 {[%clk 0:00:25.1]} 56... f2 {[%clk
0:00:15.2]} 57. Qf5 {[%clk 0:00:24.9]} 57... Kg2 {[%clk 0:00:15.6]} 58. g5
{[%clk 0:00:25]} 58... f1=Q {[%clk 0:00:16.5]} 59. Qxf1+ {[%clk 0:00:24.8]}
59... Kh2 {[%clk 0:00:17.4]} 60. g6 {[%clk 0:00:25.4]} 60... Kg3 {[%clk
0:00:17.8]} 61. g7 {[%clk 0:00:25]} 61... Kh2 {[%clk 0:00:18.2]} 62. Qf2+ {[%clk
0:00:24.3]} 62... Kh1 {[%clk 0:00:18.3]} 63. Qf3+ {[%clk 0:00:24]} 63... Kh2
{[%clk 0:00:18.6]} 64. Qg4 {[%clk 0:00:24.1]} 64... Kh1 {[%clk 0:00:18.5]} 65.
g8=Q {[%clk 0:00:23.7]} 65... Kh2 {[%clk 0:00:18.6]} 66. Qh7# {[%clk 0:00:24]}
1-0

[Event "Early-Titled-Tuesday-Blitz-March-26-2024"]
[Site "Chess.com"]
[Date "2024.03.26"]
[Round "9"]
[White "vasblesk"]
[Black "hakanazeri2"]
[Result "1-0"]
[WhiteElo "2790"]
[BlackElo "2586"]
[TimeControl "180+1"]
[EndTime "9:43:56 PDT"]
[Termination "vasblesk won by checkmate"]

1. d4 {[%clk 0:03:00.9]} 1... Nf6 {[%clk 0:02:59.9]} 2. c4 {[%clk 0:03:00.7]}
2... c6 {[%clk 0:03:00.4]} 3. Nf3 {[%clk 0:02:58.7]} 3... d5 {[%clk 0:03:00.9]}
4. Qc2 {[%clk 0:02:59.1]} 4... g6 {[%clk 0:02:59.8]} 5. Bf4 {[%clk 0:02:58.5]}
5... Bg7 {[%clk 0:02:57.9]} 6. e3 {[%clk 0:02:57.2]} 6... O-O {[%clk 0:02:57.5]}
7. Nc3 {[%clk 0:02:56]} 7... Bf5 {[%clk 0:02:51.4]} 8. Qb3 {[%clk 0:02:55.1]}
8... Qb6 {[%clk 0:02:50.7]} 9. c5 {[%clk 0:02:46.5]} 9... Qxb3 {[%clk
0:02:47.7]} 10. axb3 {[%clk 0:02:47.4]} 10... Nbd7 {[%clk 0:02:44.5]} 11. b4
{[%clk 0:02:43.6]} 11... a6 {[%clk 0:02:45]} 12. h3 {[%clk 0:02:43.3]} 12... Ne4
{[%clk 0:02:38.4]} 13. Na4 {[%clk 0:02:29.8]} 13... h5 {[%clk 0:02:30.9]} 14.
Be2 {[%clk 0:02:22.6]} 14... Rae8 {[%clk 0:02:25.9]} 15. Rg1 {[%clk 0:01:56.5]}
15... e5 {[%clk 0:02:19.6]} 16. dxe5 {[%clk 0:01:57.4]} 16... Nxe5 {[%clk
0:02:20.5]} 17. Nxe5 {[%clk 0:01:56.7]} 17... Bxe5 {[%clk 0:02:19.4]} 18. Bxe5
{[%clk 0:01:57.6]} 18... Rxe5 {[%clk 0:02:19.5]} 19. g4 {[%clk 0:01:58.5]} 19...
hxg4 {[%clk 0:02:18.2]} 20. hxg4 {[%clk 0:01:59.4]} 20... Bc8 {[%clk 0:02:11.3]}
21. Nb6 {[%clk 0:01:55.3]} 21... Nf6 {[%clk 0:02:06.8]} 22. Rd1 {[%clk
0:01:40.7]} 22... Nd7 {[%clk 0:01:52.1]} 23. Na4 {[%clk 0:01:22.5]} 23... Re4
{[%clk 0:01:48.9]} 24. Rd4 {[%clk 0:01:21.6]} 24... Ne5 {[%clk 0:01:43.8]} 25.
Nc3 {[%clk 0:01:18.6]} 25... Rxd4 {[%clk 0:01:34.6]} 26. exd4 {[%clk 0:01:19.5]}
26... Nc4 {[%clk 0:01:19.5]} 27. Bxc4 {[%clk 0:00:42.5]} 27... dxc4 {[%clk
0:01:20.4]} 28. f3 {[%clk 0:00:41.1]} 28... Rd8 {[%clk 0:01:14.9]} 29. Ne2
{[%clk 0:00:39.5]} 29... Be6 {[%clk 0:01:01.7]} 30. Kf2 {[%clk 0:00:37.8]} 30...
g5 {[%clk 0:00:58.7]} 31. Ke3 {[%clk 0:00:36.9]} 31... Kg7 {[%clk 0:00:57]} 32.
Ng3 {[%clk 0:00:36.3]} 32... Rh8 {[%clk 0:00:44.2]} 33. Rh1 {[%clk 0:00:21.5]}
33... Rxh1 {[%clk 0:00:30.4]} 34. Nxh1 {[%clk 0:00:22.4]} 34... f5 {[%clk
0:00:21.9]} 35. gxf5 {[%clk 0:00:23.3]} 35... Bxf5 {[%clk 0:00:22.6]} 36. Ng3
{[%clk 0:00:21.8]} 36... Kf6 {[%clk 0:00:23]} 37. Ne4+ {[%clk 0:00:16.4]} 37...
Ke6 {[%clk 0:00:08.9]} 38. Nxg5+ {[%clk 0:00:14.3]} 38... Kd5 {[%clk 0:00:08.6]}
39. Ne4 {[%clk 0:00:14.7]} 39... Bd7 {[%clk 0:00:01.1]} 40. Nf6+ {[%clk
0:00:12.3]} 40... Ke6 {[%clk 0:00:01.4]} 41. Nxd7 {[%clk 0:00:10.1]} 41... Kxd7
{[%clk 0:00:02.3]} 42. Ke4 {[%clk 0:00:10.7]} 42... Ke6 {[%clk 0:00:02.9]} 43.
f4 {[%clk 0:00:11.3]} 43... Ke7 {[%clk 0:00:02.8]} 44. Ke5 {[%clk 0:00:11.1]}
44... Kf7 {[%clk 0:00:02.9]} 45. f5 {[%clk 0:00:10.7]} 45... Ke7 {[%clk
0:00:03.4]} 46. f6+ {[%clk 0:00:10.9]} 46... Kd7 {[%clk 0:00:04.1]} 47. Kf5
{[%clk 0:00:10.7]} 47... Ke8 {[%clk 0:00:04.3]} 48. Kg6 {[%clk 0:00:08.6]} 48...
Kf8 {[%clk 0:00:04.7]} 49. f7 {[%clk 0:00:09.2]} 49... c3 {[%clk 0:00:03.7]} 50.
bxc3 {[%clk 0:00:09.5]} 50... a5 {[%clk 0:00:02.7]} 51. bxa5 {[%clk 0:00:09.7]}
51... b5 {[%clk 0:00:02.5]} 52. cxb6 {[%clk 0:00:09.2]} 52... c5 {[%clk
0:00:02.7]} 53. dxc5 {[%clk 0:00:09]} 53... Ke7 {[%clk 0:00:02.8]} 54. Kg7
{[%clk 0:00:09.6]} 54... Kd7 {[%clk 0:00:02.8]} 55. f8=Q {[%clk 0:00:10.1]}
55... Kc6 {[%clk 0:00:03.7]} 56. Qd6+ {[%clk 0:00:10.4]} 56... Kb5 {[%clk
0:00:04.6]} 57. b7 {[%clk 0:00:11.1]} 57... Ka4 {[%clk 0:00:04.1]} 58. Qb6
{[%clk 0:00:10.5]} 58... Ka3 {[%clk 0:00:05]} 59. b8=Q {[%clk 0:00:10.8]} 59...
Ka2 {[%clk 0:00:05]} 60. Qb2# {[%clk 0:00:11]} 1-0